[Event "Runavik Open 2018"]
[Site "Runavik"]
[Date "2018.11.17"]
[Round "7"]
[White "Apol, Luitjen Akselsson"]
[Black "Hojgaard, Brandur"]
[Result "1-0"]
[ECO "C82"]
[WhiteElo "1735"]
[BlackElo "1708"]
[Annotator "NA RC"]
[PlyCount "65"]
[EventDate "2018.11.12"]
[EventType "swiss"]
[EventCountry "FAI"]
[SourceTitle "playchess.com"]
[Source "ChessBase"]
[SourceQuality "1"]
[TimeControl "40/5400+30:900+30"]

1. e4 {[%emt 0:00:00]} e5 {[%emt 0:00:07]} 2. Nf3 {[%emt 0:00:16]} Nc6 {[%emt 0:00:05]} 3. Bb5 {[%emt 0:00:38]} a6 {[%emt 0:00:19]} 4. Ba4 {[%emt 0:00:18]} Nf6 {[%emt 0:00:19]} 5. O-O {[%emt 0:00:35]} Nxe4 {[%emt 0:01:12]} 6. d4 {[%emt 0:01:27]} b5 {[%emt 0:00:24]} 7. Bb3 {[%emt 0:00:33]} d5 {[%emt 0:00:16]} 8. dxe5 {[%emt 0:06:34]} Be6 {[%emt 0:00:16]} 9. c3 {[%emt 0:01:43]} Bc5 {[%emt 0:06:34]} 10. Nbd2 {[%emt 0:08:48]} Nxd2 {[%emt 0:20:31]} 11. Bxd2 {[%emt 0:01:16]} Na5 {[%emt 0:03:28]} 12. Bc2 {[%emt 0:05:07]} Nc4 {[%emt 0:03:58]} 13. Bg5 {[%emt 0:09:45]} Be7 {[%emt 0:06:18]} 14. Bxe7 {[%emt 0:02:00]} Qxe7 {[%emt 0:00:28]} 15. b3 {[%emt 0:00:28]} Nb6 {[%emt 0:02:01]} 16. Nd4 {[%emt 0:07:16]} c5 {[%emt 0:02:38]} 17. Ne2 {[%emt 0:09:04]} O-O {[%emt 0:04:45]} 18. Ng3 {[%emt 0:01:34]} g6 {[%emt 0:06:33]} 19. f4 {[%emt 0:03:53]} f5 {[%emt 0:06:52]} 20. exf6 {[%emt 0:18:59]} Rxf6 {[%emt 0:01:43]} 21. Qd2 {[%emt 0:01:27]} Raf8 {[%emt 0:03:10]} 22. Rae1 {[%emt 0:02:40]} Qd7 {[%emt 0:05:27]} 23. Re5 {[%emt 0:04:50]} Qf7 {[%emt 0:02:53]} 24. Qf2 {[%emt 0:04:44]} Qc7 {[%emt 0:02:58]} 25. Qe2 {[%emt 0:01:30]} Qd7 {[%emt 0:05:55]} 26. f5 {[%emt 0:02:18]} Bxf5 {[%emt 0:02:21]} 27. Nxf5 {[%emt 0:00:13]} gxf5 {[%emt 0:02:37]} 28. Rexf5 {[%emt 0:03:13]} Rxf5 {[%emt 0:02:55]} 29. Bxf5 {[%emt 0:00:10]} Qd6 {[%emt 0:03:17]} 30. Qh5 {[%emt 0:02:59]} h6 {[%emt 0:02:22]} 31. Re1 {[%emt 0:00:30]} Qf6 {[%emt 0:01:29]} 32. Re6 {[%emt 0:00:39]} Qxf5 {[%emt 0:00:58]} 33. Rg6+ {[%emt 0:00:08]} 1-0

[Event "Runavik Open 2018"]
[Site "Runavik"]
[Date "2018.11.17"]
[Round "7"]
[White "Nielsen, Jon I Horni"]
[Black "Olsen, Kaj"]
[Result "1-0"]
[ECO "C42"]
[WhiteElo "1710"]
[BlackElo "1718"]
[Annotator "NA"]
[PlyCount "153"]
[EventDate "2018.11.12"]
[EventType "swiss"]
[EventCountry "FAI"]
[SourceTitle "playchess.com"]
[Source "ChessBase"]
[SourceQuality "1"]
[TimeControl "40/5400+30:900+30"]

1. e4 {[%emt 0:00:00]} e5 {[%emt 0:00:00]} 2. Nf3 {[%emt 0:00:10]} Nf6 {[%emt 0:02:05]} 3. d3 {[%emt 0:01:54]} Nc6 {[%emt 0:03:22]} 4. Nc3 {[%emt 0:03:28]} Bb4 {[%emt 0:01:11]} 5. Be2 {[%emt 0:01:44]} d5 {[%emt 0:01:13]} 6. exd5 {[%emt 0:02:40]} Nxd5 {[%emt 0:00:38]} 7. Bd2 {[%emt 0:01:24]} O-O {[%emt 0:01:07]} 8. O-O {[%emt 0:03:16]} Re8 {[%emt 0:08:59]} 9. Ne4 {[%emt 0:04:19]} f5 {[%emt 0:01:27]} 10. Ng3 {[%emt 0:02:25]} Qd6 {[%emt 0:04:52]} 11. c3 {[%emt 0:04:27]} Bc5 {[%emt 0:00:24]} 12. Qc2 {[%emt 0:06:55]} g6 {[%emt 0:04:24]} 13. Rad1 {[%emt 0:08:46]} a5 {[%emt 0:08:31]} 14. a3 {[%emt 0:05:38]} Nf4 {[%emt 0:08:09]} 15. Be3 {[%emt 0:03:20]} Ne6 {[%emt 0:15:44]} 16. Bxc5 {[%emt 0:01:11]} Qxc5 {[%emt 0:02:41]} 17. Qb3 {[%emt 0:02:23]} a4 {[%emt 0:04:56]} 18. Qa2 {[%emt 0:02:37]} Kg7 {[%emt 0:00:59]} 19. Qb1 {[%emt 0:05:51]} b6 {[%emt 0:02:36]} 20. Qc1 {[%emt 0:02:48]} Nf4 {[%emt 0:03:02]} 21. d4 {[%emt 0:01:14]} Nxe2+ {[%emt 0:01:34]} 22. Nxe2 {[%emt 0:00:09]} Qb5 {[%emt 0:00:32]} 23. c4 {[%emt 0:04:30]} Qb3 {[%emt 0:02:18]} 24. d5 {[%emt 0:03:11]} Na5 {[%emt 0:00:30]} 25. Nd2 {[%emt 0:01:44]} Qd3 {[%emt 0:00:38]} 26. Ng3 {[%emt 0:01:45]} Ba6 {[%emt 0:00:40]} 27. Nde4 {[%emt 0:01:49]} Qxc4 {[%emt 0:02:05]} 28. Qg5 {[%emt 0:00:19]} fxe4 {[%emt 0:05:23]} 29. Nf5+ {[%emt 0:00:55]} Kg8 {[%emt 0:00:34]} 30. Nh6+ {[%emt 0:00:12]} Kg7 {[%emt 0:00:43]} 31. Rc1 {[%emt 0:00:42]} Qxf1+ {[%emt 0:01:33]} 32. Rxf1 {[%emt 0:01:35]} Bxf1 {[%emt 0:00:06]} 33. Kxf1 {[%emt 0:00:08]} Nc4 {[%emt 0:02:27]} 34. Ng4 {[%emt 0:02:15]} Rf8 {[%emt 0:01:44]} 35. Nxe5 {[%emt 0:01:45]} Nxe5 {[%emt 0:01:24]} 36. Qxe5+ {[%emt 0:00:09]} Kh6 {[%emt 0:02:27]} 37. Qxe4 {[%emt 0:01:45]} Rad8 {[%emt 0:00:58]} 38. Qxa4 {[%emt 0:00:24]} Rxd5 {[%emt 0:00:28]} 39. Qh4+ {[%emt 0:01:25]} Kg7 {[%emt 0:00:15]} 40. Qe7+ {[%emt 0:00:00]} Rf7 {[%emt 0:00:00]} 41. Qe2 {[%emt 0:04:11]} Rfd7 {[%emt 0:03:00]} 42. g3 {[%emt 0:01:12]} Rf7 {[%emt 0:01:40]} 43. Kg2 {[%emt 0:01:35]} Rfd7 {[%emt 0:02:53]} 44. h4 {[%emt 0:02:33]} Rd3 {[%emt 0:02:03]} 45. Qe5+ {[%emt 0:00:30]} Kg8 {[%emt 0:00:23]} 46. h5 {[%emt 0:02:04]} R3d5 {[%emt 0:00:55]} 47. Qe8+ {[%emt 0:00:55]} Kg7 {[%emt 0:00:13]} 48. hxg6 {[%emt 0:01:23]} hxg6 {[%emt 0:00:13]} 49. a4 {[%emt 0:02:01]} Rf7 {[%emt 0:01:10]} 50. Qe3 {[%emt 0:00:58]} Rdf5 {[%emt 0:03:41]} 51. f4 {[%emt 0:01:57]} Ra5 {[%emt 0:01:56]} 52. b3 {[%emt 0:04:38]} Raf5 {[%emt 0:01:46]} 53. Qd4+ {[%emt 0:01:18]} Kh7 {[%emt 0:01:15]} 54. Qe4 {[%emt 0:01:02]} Kg7 {[%emt 0:00:19]} 55. b4 {[%emt 0:01:08]} Kh7 {[%emt 0:02:17]} 56. Qe3 {[%emt 0:00:11]} c5 {[%emt 0:01:20]} 57. bxc5 {[%emt 0:01:00]} Rxc5 {[%emt 0:00:13]} 58. Qb3 {[%emt 0:01:27]} Rf6 {[%emt 0:00:33]} 59. Kh3 {[%emt 0:00:28]} Rh5+ {[%emt 0:02:53]} 60. Kg4 {[%emt 0:00:14]} Rc5 {[%emt 0:00:16]} 61. Qb4 {[%emt 0:00:13]} Kh6 {[%emt 0:00:36]} 62. Qd2 {[%emt 0:00:55]} Kg7 {[%emt 0:00:51]} 63. Qd4 {[%emt 0:00:21]} Kf7 {[%emt 0:00:15]} 64. Qd7+ {[%emt 0:01:21]} Kf8 {[%emt 0:00:28]} 65. Kf3 {[%emt 0:01:13]} Rcf5 {[%emt 0:00:07]} 66. Ke4 {[%emt 0:01:14]} Kg8 {[%emt 0:01:15]} 67. Qc7 {[%emt 0:00:53]} Ra5 {[%emt 0:01:34]} 68. Qd7 {[%emt 0:01:07]} Raf5 {[%emt 0:00:31]} 69. Qe7 {[%emt 0:01:13]} Ra5 {[%emt 0:01:38]} 70. Qxf6 {[%emt 0:00:03]} Rxa4+ {[%emt 0:00:12]} 71. Kf3 {[%emt 0:00:05]} Kh7 {[%emt 0:00:47]} 72. Qxb6 {[%emt 0:00:17]} Kh6 {[%emt 0:00:12]} 73. Kg4 {[%emt 0:00:18]} Re4 {[%emt 0:00:43]} 74. Qf6 {[%emt 0:00:15]} Kh7 {[%emt 0:00:39]} 75. Kg5 {[%emt 0:00:03]} Ra4 {[%emt 0:00:28]} 76. Qxg6+ {[%emt 0:00:03]} Kh8 {[%emt 0:00:13]} 77. Qe8+ {[%emt 0:00:03]} 1-0

[Event "Runavik Open 2018"]
[Site "Runavik"]
[Date "2018.11.17"]
[Round "7"]
[White "Nielsen, Suni I Horni"]
[Black "Petersen, Elias"]
[Result "1-0"]
[ECO "C50"]
[WhiteElo "1563"]
[BlackElo "1045"]
[Annotator "NA RC"]
[PlyCount "37"]
[EventDate "2018.11.12"]
[EventType "swiss"]
[EventCountry "FAI"]
[SourceTitle "playchess.com"]
[Source "ChessBase"]
[SourceQuality "1"]
[TimeControl "40/5400+30:900+30"]

1. e4 {[%emt 0:00:00]} e5 {[%emt 0:00:00]} 2. Nf3 {[%emt 0:00:00]} Nc6 {[%emt 0:00:03]} 3. Bc4 {[%emt 0:00:34]} a6 {[%emt 0:01:10]} 4. d3 {[%emt 0:00:35]} Bc5 {[%emt 0:00:34]} 5. Nc3 {[%emt 0:00:27]} h6 {[%emt 0:00:43]} 6. Be3 {[%emt 0:00:32]} Bxe3 {[%emt 0:00:42]} 7. fxe3 {[%emt 0:00:04]} d6 {[%emt 0:00:30]} 8. h3 {[%emt 0:00:13]} Nf6 {[%emt 0:00:54]} 9. O-O {[%emt 0:01:48]} O-O {[%emt 0:00:34]} 10. Nh4 {[%emt 0:00:16]} Nxe4 {[%emt 0:01:39]} 11. Ng6 {[%emt 0:00:34]} Bxh3 {[%emt 0:01:01]} 12. Qf3 {[%emt 0:04:10]} Nd2 {[%emt 0:01:07]} 13. Bxf7+ {[%emt 0:03:03]} Kh7 {[%emt 0:00:47]} 14. Nxf8+ {[%emt 0:00:13]} Kh8 {[%emt 0:00:46]} 15. Ng6+ {[%emt 0:00:21]} Kh7 {[%emt 0:00:14]} 16. Qxh3 {[%emt 0:00:13]} Nxf1 {[%emt 0:00:41]} 17. Qf5 {[%emt 0:00:18]} Nxe3 {[%emt 0:00:53]} 18. Nf8+ {[%emt 0:00:08]} Kh8 {[%emt 0:00:12]} 19. Qh7# {[%emt 0:00:07]} 1-0

[Event "Runavik Open 2018"]
[Site "Runavik"]
[Date "2018.11.17"]
[Round "7"]
[White "Tummasarson, Flovin M."]
[Black "Jacobsen, Markus"]
[Result "1-0"]
[ECO "C01"]
[WhiteElo "1378"]
[BlackElo "1076"]
[Annotator "NA RC"]
[PlyCount "73"]
[EventDate "2018.11.12"]
[EventType "swiss"]
[EventCountry "FAI"]
[SourceTitle "playchess.com"]
[Source "ChessBase"]
[SourceQuality "1"]
[TimeControl "40/5400+30:900+30"]

1. e4 {[%emt 0:00:00]} e6 {[%emt 0:00:00]} 2. d4 {[%emt 0:00:00]} d5 {[%emt 0:00:00]} 3. exd5 {[%emt 0:00:00]} exd5 {[%emt 0:01:28]} 4. c4 {[%emt 0:02:48]} c6 {[%emt 0:01:28]} 5. Nf3 {[%emt 0:01:43]} g6 {[%emt 0:01:34]} 6. Nc3 {[%emt 0:02:46]} Bg7 {[%emt 0:02:09]} 7. Be2 {[%emt 0:03:12]} Bg4 {[%emt 0:00:58]} 8. c5 {[%emt 0:01:12]} Ne7 {[%emt 0:02:30]} 9. Be3 {[%emt 0:03:21]} Nf5 {[%emt 0:01:19]} 10. O-O {[%emt 0:00:47]} O-O {[%emt 0:02:22]} 11. h3 {[%emt 0:01:59]} Nxe3 {[%emt 0:02:02]} 12. fxe3 {[%emt 0:00:11]} Be6 {[%emt 0:01:18]} 13. Re1 {[%emt 0:01:33]} Nd7 {[%emt 0:04:04]} 14. Qd2 {[%emt 0:02:08]} Qe7 {[%emt 0:01:43]} 15. Rab1 {[%emt 0:03:13]} Bh6 {[%emt 0:01:11]} 16. Bd3 {[%emt 0:04:31]} Nf6 {[%emt 0:03:50]} 17. Qf2 {[%emt 0:04:08]} Bd7 {[%emt 0:02:01]} 18. Ne5 {[%emt 0:03:36]} Nh5 {[%emt 0:03:09]} 19. Re2 {[%emt 0:01:50]} Bc8 {[%emt 0:09:20]} 20. Rbe1 {[%emt 0:02:50]} Qg5 {[%emt 0:03:37]} 21. Kh2 {[%emt 0:02:49]} f5 {[%emt 0:04:01]} 22. Nf3 {[%emt 0:02:38]} Qd8 {[%emt 0:01:32]} 23. b4 {[%emt 0:03:16]} Qc7+ {[%emt 0:01:46]} 24. Kg1 {[%emt 0:01:17]} f4 {[%emt 0:02:24]} 25. Nd1 {[%emt 0:05:50]} fxe3 {[%emt 0:01:42]} 26. Nxe3 {[%emt 0:02:05]} Nf4 {[%emt 0:00:55]} 27. Rd2 {[%emt 0:00:47]} Bxh3 {[%emt 0:00:54]} 28. Qh4 {[%emt 0:01:19]} Nxg2 {[%emt 0:01:36]} 29. Rxg2 {[%emt 0:03:04]} Bxg2 {[%emt 0:00:56]} 30. Kxg2 {[%emt 0:00:12]} Bxe3 {[%emt 0:01:39]} 31. Rxe3 {[%emt 0:00:16]} Qf7 {[%emt 0:01:24]} 32. Ng5 {[%emt 0:00:47]} Qg7 {[%emt 0:01:53]} 33. Ne6 {[%emt 0:00:30]} g5 {[%emt 0:01:41]} 34. Qg3 {[%emt 0:02:12]} Qf7 {[%emt 0:01:45]} 35. Nxf8 {[%emt 0:00:29]} Rxf8 {[%emt 0:00:17]} 36. Qxg5+ {[%emt 0:00:15]} Kh8 {[%emt 0:00:21]} 37. Qe5+ {[%emt 0:00:24]} 1-0

[Event "Runavik Open 2018"]
[Site "Runavik"]
[Date "2018.11.17"]
[Round "7"]
[White "Fjallheim, Benjamin Reinert"]
[Black "Jacobsen, Heidrikur T."]
[Result "0-1"]
[ECO "E90"]
[WhiteElo "1340"]
[BlackElo "1935"]
[Annotator "NA RC"]
[PlyCount "122"]
[EventDate "2018.11.12"]
[EventType "swiss"]
[EventCountry "FAI"]
[SourceTitle "playchess.com"]
[Source "ChessBase"]
[SourceQuality "1"]
[TimeControl "40/5400+30:900+30"]

{[%evp 8,111,32,47,46,22,54,13,48,27,27,19,41,-72,-7,-33,-19,-75,-51,-58,-40,-39,22,4,18,22,38,20,25,0,0,-25,26,0,0,0,0,0,0,-80,-43,-75,-50,-48,0,0,0,0,0,-54,-69,-91,-98,-191,-172,-172,0,0,0,0,0,0,0,0,0,0,0,-146,0,0,0,-108,-106,-145,-215,-436,-477,-684,-400,-419,-414,-595,-749,-637,-1278,-693,-747,-647,-760,-678,-1707,-697,-6311,-1431,-1966,-29982,-6295,-1754,-2338,-29974,-6335,-29989,-29989,-29991,-29990,-29990]} 1. e4 {[%emt 0:00:00]} g6 {[%emt 0:01:59]} 2. d4 {[%emt 0:00:37]} Bg7 {[%emt 0:00:09]} 3. Nf3 {[%emt 0:02:49]} d6 {[%emt 0:00:28]} 4. c4 {[%emt 0:02:12]} Nf6 {[%emt 0:00:45]} 5. Nc3 {[%emt 0:03:03]} O-O {[%emt 0:01:41]} 6. Bg5 {[%emt 0:14:15]} c6 {[%emt 0:02:19]} 7. Qd2 {[%emt 0:08:35] LiveBook: 3 Games E90: King's Indian: Classical: Early deviations and 6 h3} Qc7 {[%emt 0:05:50]} (7... Nbd7 8. Bd3 a6 9. O-O b5 10. Bh6 e5 11. Bxg7 Kxg7 12. b3 Bb7 13. Rfe1 Re8 14. Bc2 bxc4 15. bxc4 exd4 16. Nxd4 {1-0 (48) Aleksandrov,A (2609)-Harutjunyan,G (2464) Izhevsk 2011}) 8. Bd3 {[%emt 0:02:01]} e5 {[%emt 0:01:04]} 9. d5 {[%emt 0:00:42]} Na6 {[%emt 0:03:07]} 10. Bh6 {[%emt 0:01:20]} (10. O-O $14 {keeps the upper hand.}) 10... Nc5 {[%emt 0:00:47]} 11. Bxg7 {[%emt 0:00:33]} Kxg7 {[%emt 0:02:44]} 12. b4 $146 {[%emt 0:00:48]} (12. Bc2 $11 {keeps the balance.}) ({Predecessor:} 12. O-O Bg4 13. Ne1 Qe7 14. h3 Bd7 {1-0 (34) Weller,M (1593)-Gahn,J (1379) Willingen 2003}) 12... Nxd3+ {[%emt 0:00:37]} 13. Qxd3 {[%emt 0:00:13]} a5 {[%emt 0:01:14]} 14. b5 {[%emt 0:02:26]} c5 {[%emt 0:01:29]} 15. Na4 {[%emt 0:06:12]} b6 {[%emt 0:01:10]} 16. O-O-O {[%emt 0:02:46]} Rb8 {[%emt 0:02:22]} 17. h3 {[%emt 0:04:30]} Nh5 {[%emt 0:02:44]} 18. g4 {[%emt 0:02:19]} Nf4 {[%emt 0:00:21]} 19. Qd2 {[%emt 0:01:14]} Qe7 {[%emt 0:01:20]} 20. Nc3 {[%emt 0:03:06]} f5 {[%emt 0:03:00]} 21. gxf5 {[%emt 0:01:33]} gxf5 {[%emt 0:00:24]} 22. Rdg1+ {[%emt 0:04:08]} Kh8 {[%emt 0:00:17]} 23. Rg3 {[%emt 0:04:28]} (23. Qe3 $11) 23... fxe4 {[%emt 0:01:55]} 24. Nxe4 {[%emt 0:00:26]} Bf5 {[%emt 0:00:39]} 25. Qe3 $1 {[%emt 0:04:21]} h6 {[%emt 0:02:22]} (25... Bxe4 $15 26. Qxe4 Nh5) 26. h4 {[%emt 0:00:56]} Rbd8 {[%emt 0:02:54]} 27. Rhg1 {[%emt 0:04:35]} Rg8 {[%emt 0:02:16]} 28. Rxg8+ {[%emt 0:02:58]} Rxg8 {[%emt 0:00:08]} 29. Rxg8+ {[%emt 0:00:09]} Kxg8 {[%emt 0:00:06]} 30. Ng3 {[%emt 0:06:15]} (30. Kb2 $17 {was necessary.}) 30... Bd3 {[%emt 0:07:00]} 31. Nh5 {[%emt 0:03:58] [#]} Nxh5 {[%emt 0:03:46]} (31... Qf7 $1 $17 {[%cal Rf7h5]} 32. Nxf4 Qxf4 33. Qxf4 exf4) 32. Qxd3 {[%emt 0:00:28]} Qf6 {[%emt 0:01:18]} 33. Nd2 {[%emt 0:02:18]} Nf4 {[%emt 0:03:18]} 34. Qg3+ {[%emt 0:00:29]} Kf7 {[%emt 0:00:13]} 35. Kd1 {[%emt 0:01:24]} Qf5 {[%emt 0:00:45]} 36. Qe3 $1 {[%emt 0:01:09]} Qh5+ {[%emt 0:05:09]} 37. Nf3 {[%emt 0:01:12]} Qf5 {[%emt 0:01:03]} 38. Nd2 {[%emt 0:00:20]} Qh5+ {[%emt 0:04:04]} 39. Nf3 {[%emt 0:01:28]} Kf6 {[%emt 0:00:58]} 40. Kc1 {[%emt 0:00:00] [#]} Kf5 $1 {[%emt 0:00:00]} 41. Kd2 $2 {[%emt 0:05:38]} (41. Nd2 {was necessary.} Qe2 42. Qxe2 Nxe2+ 43. Kc2) 41... Ng2 {[%emt 0:21:20]} 42. Qb3 $2 {[%emt 0:00:45]} (42. Qe2 Qg4 43. Ng1) 42... Qg4 {[%emt 0:00:59]} 43. Kc1 {[%emt 0:08:45]} Nxh4 {[%emt 0:04:53]} 44. Qd3+ {[%emt 0:01:31]} e4 {[%emt 0:01:01]} 45. Nxh4+ {[%emt 0:00:13]} Qxh4 {[%emt 0:00:06]} 46. Qf1 {[%emt 0:02:28]} Qf4+ {[%emt 0:00:53]} 47. Kc2 {[%emt 0:01:09]} Qf3 {[%emt 0:00:13]} 48. Qg1 {[%emt 0:00:39]} Qd3+ {[%emt 0:01:23]} 49. Kb2 {[%emt 0:00:15]} a4 {[%emt 0:00:29]} 50. Qg8 {[%emt 0:00:41]} a3+ {[%emt 0:00:20]} 51. Kc1 {[%emt 0:00:18]} Qxc4+ {[%emt 0:00:28]} 52. Kd1 {[%emt 0:00:22]} Qf1+ {[%emt 0:00:19]} 53. Kc2 {[%emt 0:00:26]} Qxf2+ $19 {[%emt 0:00:09]} (53... Qe2+ $142 54. Kc1 Qb2+ 55. Kd1 Qb1+ 56. Ke2 Qxb5+ 57. Kd2 Qb4+ 58. Ke2 Qb5+ 59. Kd2 Qd3+ 60. Ke1 Qb1+ {[%mdl 64] Double Attack} 61. Ke2 Qxa2+ 62. Kf1 Qa1+ 63. Kg2 Qf6 64. Qc8+ Ke5 65. Kf1 Kd4 66. Qe8 Qf3 67. Qa4+ c4 68. Ke1 Qc3+ 69. Kf1 Qb2 70. Qd7 Qb1+ 71. Kg2 a2 72. Qg7+ Kxd5 73. Qb7+ Kd4 74. Qg7+ Kd3 75. Qg3+ Kc2 76. Qg4 a1=Q 77. Qxe4+ Kb3 78. Qe3+ Ka4 79. Qe8+ Kb4 80. Qh5 Qg1+ 81. Kf3 Qd4 82. Qh4 Qxh4 83. Ke3 Qgxf2#) 54. Kc1 {[%emt 0:00:31]} e3 {[%emt 0:01:16]} 55. Qf7+ {[%emt 0:02:07]} Kg4 {[%emt 0:00:41]} 56. Qg6+ {[%emt 0:00:37]} Kf3 {[%emt 0:00:53]} 57. Qh5+ {[%emt 0:01:16]} Ke4 {[%emt 0:02:42]} 58. Qg6+ {[%emt 0:01:35]} Kd4 {[%emt 0:01:29]} 59. Qg4+ {[%emt 0:00:44]} Kc3 {[%emt 0:00:57]} 60. Qg7+ {[%emt 0:00:28]} Kb4 {[%emt 0:00:28]} 61. Qg4+ {[%emt 0:01:45]} Ka5 {[%emt 0:00:31]} 0-1

[Event "Runavik Open 2018"]
[Site "Runavik"]
[Date "2018.11.17"]
[Round "8"]
[White "Pinheiro Diamant, Jonatan"]
[Black "Berg, Margar M."]
[Result "1-0"]
[ECO "B92"]
[WhiteElo "1789"]
[BlackElo "1852"]
[Annotator "NA RC"]
[PlyCount "81"]
[EventDate "2018.11.12"]
[EventType "swiss"]
[EventCountry "FAI"]
[SourceTitle "playchess.com"]
[Source "ChessBase"]
[SourceQuality "1"]
[TimeControl "40/5400+30:900+30"]

{[%evp 38,80,7,32767,0,4,32767,32767,239,32767,32767,32767,178,147,136,-25,32767,32767,94,79,32767,32767,85,72,524,519,593,543,751,852,1344,2442,5018,0,0,0,839,1205,1453,754,1089,29972,29965,1845,5207]} 1. e4 {[%emt 0:00:00]} c5 {[%emt 0:00:00]} 2. Nf3 {[%emt 0:00:00]} d6 {[%emt 0:00:00]} 3. d4 {[%emt 0:00:00]} cxd4 {[%emt 0:00:01]} 4. Nxd4 {[%emt 0:00:00]} Nf6 {[%emt 0:00:10]} 5. Nc3 {[%emt 0:00:00]} a6 {[%emt 0:00:09]} 6. Be2 {[%emt 0:00:00]} e5 {[%emt 0:00:49]} 7. Nb3 {[%emt 0:00:03]} Be6 {[%emt 0:00:18]} 8. Be3 {[%emt 0:00:08]} Nbd7 {[%emt 0:00:30]} 9. O-O {[%emt 0:05:48]} Rc8 {[%emt 0:01:07] B92: Sicilian Najdorf: 6 Be2} (9... Be7 10. Qd2 O-O 11. a4 Nc5 12. Nxc5 dxc5 13. Qxd8 Rfxd8 14. f3 c4 15. Kf2 Rac8 16. a5 Kf8 17. Na4 Nd7 18. Rfd1 Bb4 19. Nc3 Bc5 20. Ra4 Bxe3+ 21. Kxe3 {1-0 (49) Leko,P (2755)-Anand,V (2801) Moscow 2007}) 10. f4 {[%emt 0:03:13]} b5 {[%emt 0:05:09]} 11. f5 {[%emt 0:02:56]} Bc4 {[%emt 0:01:30]} 12. Nd2 $146 {[%emt 0:11:16]} ({Predecessor:} 12. Bd3 Qc7 13. a3 Be7 14. Qf3 O-O 15. Rad1 Rfd8 16. g4 Kh8 17. g5 Ng8 18. Bxc4 bxc4 {1-0 (48) Malanova,A (1892)-Shagdyrov,V Ulan Ude 2012}) 12... Nb6 {[%emt 0:08:05]} 13. g4 {[%emt 0:04:01]} h6 {[%emt 0:02:47]} 14. Bd3 {[%emt 0:09:03]} d5 {[%emt 0:02:52]} 15. g5 {[%emt 0:11:17]} d4 {[%emt 0:07:29]} 16. gxf6 {[%emt 0:01:39]} dxe3 {[%emt 0:01:19]} 17. Nxc4 {[%emt 0:10:26]} bxc4 {[%emt 0:05:35]} 18. fxg7 {[%emt 0:07:12]} Rg8 {[%emt 0:03:32]} 19. Kh1 {[%emt 0:04:14]} Rxg7 {[%emt 0:01:16]} 20. f6 {[%emt 0:06:26]} Rg5 {[%emt 0:01:34]} (20... Rg6 $5 21. Be2 $8 Bc5 $11) 21. Be2 {[%emt 0:00:31]} Qd4 {[%emt 0:00:54]} 22. Qe1 {[%emt 0:02:04]} Nd7 $2 {[%emt 0:15:31]} (22... Qd2 $14) 23. Rb1 {[%emt 0:09:39]} Qd6 {[%emt 0:12:17]} 24. Nd5 {[%emt 0:01:14]} Nc5 {[%emt 0:01:20]} 25. Nxe3 {[%emt 0:01:09]} Nxe4 {[%emt 0:00:41]} 26. Nf5 $2 {[%emt 0:02:38]} (26. Rd1 $16 Qe6 27. Qh4 Nxf6 28. Bxc4 Qc6+ 29. Nd5) 26... Qxf6 {[%emt 0:16:44]} 27. Bf3 {[%emt 0:00:32]} Rxf5 {[%emt 0:04:53]} 28. Qxe4 {[%emt 0:00:03]} Rf4 {[%emt 0:01:17]} 29. Qb7 {[%emt 0:00:32]} Qe6 {[%emt 0:00:43]} 30. Rbe1 {[%emt 0:00:41]} Be7 $2 {[%emt 0:01:46] [#]} (30... Bc5 $16 {is tougher.}) 31. Rxe5 $1 {[%emt 0:01:17]} Qd7 {[%emt 0:03:37]} 32. Qxa6 {[%emt 0:04:35]} f6 {[%emt 0:01:16]} (32... Rxf3 $142 33. Rxf3 Qc6 34. Qxc6+ Rxc6) 33. Bh5+ {[%emt 0:01:16] Discovered Attack (Double check)} Kd8 {[%emt 0:00:36]} 34. Qa5+ {[%emt 0:01:57]} Rc7 {[%emt 0:00:35]} 35. Qa8+ {[%emt 0:00:26]} Rc8 {[%emt 0:00:09]} 36. Qa5+ {[%emt 0:00:17]} Rc7 {[%emt 0:00:15]} 37. Rxf4 {[%emt 0:00:55]} fxe5 {[%emt 0:00:16]} 38. Qxe5 {[%emt 0:00:46]} Rc5 {[%emt 0:01:13]} 39. Qb8+ {[%emt 0:00:24]} Rc8 {[%emt 0:00:33]} 40. Qb6+ {[%emt 0:00:00] Double Attack} Qc7 $18 {[%emt 0:00:00]} 41. Rd4+ {[%emt 0:01:28]} 1-0

[Event "Runavik Open 2018"]
[Site "Runavik"]
[Date "2018.11.17"]
[Round "8"]
[White "Olsen, Kaj"]
[Black "Jacobsen, Markus"]
[Result "1-0"]
[ECO "C10"]
[WhiteElo "1718"]
[BlackElo "1076"]
[Annotator "NA"]
[PlyCount "71"]
[EventDate "2018.11.12"]
[EventType "swiss"]
[EventCountry "FAI"]
[SourceTitle "playchess.com"]
[Source "ChessBase"]
[SourceQuality "1"]
[TimeControl "40/5400+30:900+30"]

1. e4 {[%emt 0:00:00]} e6 {[%emt 0:00:00]} 2. d4 {[%emt 0:00:03]} d5 {[%emt 0:00:13]} 3. Nc3 {[%emt 0:00:11]} c5 {[%emt 0:00:26]} 4. e5 {[%emt 0:00:23]} Nc6 {[%emt 0:00:33]} 5. Be3 {[%emt 0:00:40]} c4 {[%emt 0:04:14]} 6. f4 {[%emt 0:02:23]} Bb4 {[%emt 0:02:18]} 7. a3 {[%emt 0:00:54]} Ba5 {[%emt 0:01:14]} 8. Nf3 {[%emt 0:01:41]} Nge7 {[%emt 0:01:55]} 9. Be2 {[%emt 0:01:06]} O-O {[%emt 0:01:08]} 10. O-O {[%emt 0:04:33]} Nf5 {[%emt 0:02:25]} 11. Qd2 {[%emt 0:02:08]} f6 {[%emt 0:01:52]} 12. b3 {[%emt 0:01:33]} cxb3 {[%emt 0:05:39]} 13. cxb3 {[%emt 0:00:28]} Nce7 {[%emt 0:02:24]} 14. Bf2 {[%emt 0:04:18]} fxe5 {[%emt 0:05:00]} 15. dxe5 {[%emt 0:05:24]} Ng6 {[%emt 0:01:48]} 16. g3 {[%emt 0:01:15]} Qd7 {[%emt 0:01:32]} 17. b4 {[%emt 0:00:58]} Bb6 {[%emt 0:01:09]} 18. Bxb6 {[%emt 0:00:14]} axb6 {[%emt 0:00:13]} 19. Nd4 {[%emt 0:00:27]} Nge7 {[%emt 0:01:45]} 20. Bg4 {[%emt 0:03:16]} g6 {[%emt 0:02:36]} 21. Qd3 {[%emt 0:02:20]} h5 {[%emt 0:01:45]} 22. Bxf5 {[%emt 0:00:47]} exf5 {[%emt 0:00:48]} 23. Ndb5 {[%emt 0:01:44]} Kh8 {[%emt 0:03:33]} 24. Qd4 {[%emt 0:00:47]} Kh7 {[%emt 0:03:03]} 25. Qxb6 {[%emt 0:01:56]} Rg8 {[%emt 0:01:52]} 26. Qd6 {[%emt 0:00:39]} g5 {[%emt 0:01:31]} 27. Qxd7 {[%emt 0:02:07]} Bxd7 {[%emt 0:00:15]} 28. Nc7 {[%emt 0:00:28]} Rad8 {[%emt 0:00:50]} 29. N7xd5 {[%emt 0:00:17]} Nxd5 {[%emt 0:00:21]} 30. Nxd5 {[%emt 0:00:08]} Bb5 {[%emt 0:00:35]} 31. Rfd1 {[%emt 0:00:46]} Kh6 {[%emt 0:02:10]} 32. Nf6 {[%emt 0:01:39]} Rxd1+ {[%emt 0:00:41]} 33. Rxd1 {[%emt 0:01:03]} Rg6 {[%emt 0:01:32]} 34. Kf2 {[%emt 0:00:59]} gxf4 {[%emt 0:01:16]} 35. gxf4 {[%emt 0:00:25]} Bc6 {[%emt 0:00:52]} 36. Rg1 {[%emt 0:00:27]} 1-0